Cogmind - Beta 13 @@@ ROGUE MODE // 2024.04.11 @ 12:47:44 Player: Errormaker Result: Destroyed by G-34 Mercenary with Small Laser Performance ------------- Evolutions (1) 500 Regions Visited (3) 600 Robots Destroyed (50) 250 Value Destroyed (1340) 1340 Prototype IDs (1) 20 Alien Tech Used (0) 0 Bonus (63) 63 TOTAL SCORE: 2773 Bonus ------- High Alert Combat Kills 46 Follower Combat Kills 145 Friendly Fire -128 Cogmind --------- Core Integrity 0/400 Matter 238/300 Energy 228/265 System Corruption 0% Temperature Danger (454) Movement Walking (190) Ox1 Location -9/Storage Parts ------- > --- POWER (1) -------- Improved Ion Engine > --- PROPULSION (4) --- Aluminum Leg > --- UTILITY (2) ------ Hardened Light Armor Plating Shield Generator > --- WEAPON (2) ------- (None) > --- INVENTORY (5) ---- Heavy Ion Engine Deuterium Engine Medium Battery (150) Sensor Array Targeting Computer Peak State ------------ > --- POWER ------------ Improved Ion Engine > --- PROPULSION ------- Aluminum Leg Aluminum Leg Carbon-fiber Leg Carbon-fiber Leg > --- UTILITY ---------- Hardened Light Armor Plating Shield Generator > --- WEAPON ----------- Improved EM Shotgun Beam Rifle > --- INVENTORY -------- Heavy Ion Engine Deuterium Engine Medium Battery Sensor Array Targeting Computer [Rating: 19] Favorites ----------- Power Ion Engine Engine Ion Engine Propulsion Light Treads Treads Light Treads Leg Aluminum Leg Wheel Wheel Flight Unit Flight Unit Utility Heat Sink Device Heat Sink Storage High-capacity Storage Unit Protection Hardened Light Armor Plating Weapon Heavy Assault Rifle Energy Gun Medium Laser Ballistic Gun Heavy Assault Rifle Build | -11 -10 -9 -9 ------- Run | Yrd Mat Mat Sto Slots Evolved 2 | . . 2 . Power . | . . . . Propulsion 2 | . . 2 . Utility . | . . . . Weapon . | . . . . Parts Attached 48 | 6 10 14 18 Power 9 | 1 2 4 2 Engine 9 | 1 2 4 2 Core . | . . . . Reactor . | . . . . Propulsion 20 | 2 1 8 9 Treads 8 | 1 1 6 . Leg 6 | . . 1 5 Wheel 2 | 1 . 1 . Hover . | . . . . Flight 4 | . . . 4 Utility 11 | 1 4 1 5 Device 5 | . 2 . 3 Storage 4 | 1 2 1 . Processor . | . . . . Hackware . | . . . . Protection 2 | . . . 2 Artifact . | . . . . Weapon 8 | 2 3 1 2 Energy Gun 4 | 1 1 . 2 Energy Cannon . | . . . . Ballistic Gun 4 | 1 2 1 . Ballistic Cannon . | . . . . Launcher . | . . . . Special Weapon . | . . . . Impact Weapon . | . . . . Slashing Weapon . | . . . . Piercing Weapon . | . . . . Special Melee Weapon . | . . . . Unidentified Prototypes 1 | . . . 1 Parts Lost 21 | . 2 7 12 Power 2 | . . 2 . Propulsion 13 | . 1 3 9 Utility . | . . . . Weapon 6 | . 1 2 3 Highest Loss Streak 6 | . 2 2 6 To Critical Strikes . | . . . . Average Slot Usage (%) 92 | . 97 92 84 Engine 12 | . 14 10 11 Treads 18 | . 16 33 5 Leg 9 | . . 2 30 Wheel 5 | . 11 2 . Device 11 | . 12 11 10 Storage 10 | . 14 11 2 Protection 2 | . . . 7 Energy Gun 7 | . 11 . 9 Ballistic Gun 13 | . 15 20 2 Naked Turns . | . . . . Heaviest Build 92 | 14 92 92 49 Greatest Support 80 | 20 40 80 60 Greatest Overweight (x) 9 | 1 2 9 3 Average Overweight (x) 1 | . 1 1 . Largest Inventory Capacity 25 | 8 25 25 20 Average Capacity 13 | 7 10 21 8 Most Carried 20 | 4 12 20 20 Average Carried 9 | 2 8 14 8 Final Capacity 25 | 8 25 20 5 Final Carried 19 | 4 12 19 5 Class Distribution -------------------- 65% | Mutant 34% | Scavenger-Mutant Dominant Class ---------------- Mutant | -10/Materials Mutant | -9/Materials Scavenger-Mutant | -9/Storage Resources | -11 -10 -9 -9 ----------- Run | Yrd Mat Mat Sto Matter Collected 1264 | 218 409 436 201 Remotely . | . . . . Salvage Created 1730 | . 410 561 759 Parts 109 | . 30 39 40 Haulers Intercepted . | . . . . Recyclers Shooed 1 | . . . 1 Parts Field Recycled . | . . . . Retrieved Matter . | . . . . Parts Self-Destructed . | . . . . Prevented . | . . . . Kills | -11 -10 -9 -9 ------- Run | Yrd Mat Mat Sto Combat Hostiles Destroyed 43 | . 11 18 14 Guns 40 | . 10 18 12 AOE 3 | . 1 . 2 Classes Destroyed 9 | . 4 1 4 Builder 2 | . 1 . 1 Recycler 1 | . . . 1 Mechanic 1 | . . . 1 Watcher 2 | . 1 1 . Swarmer 14 | . 3 10 1 Grunt 21 | . 8 4 9 Brawler 1 | . . . 1 Duelist 1 | . . . 1 Sentry 6 | . . 4 2 Thug 1 | . . . 1 Best Kill Streak 9 | . 3 4 9 Combat Bots Only 6 | . 3 4 6 Max Kills in Single Turn 5 | . 2 1 5 Gunslinging . | . . . . Exploded 1 | . 1 . 1 Melee . | . . . . Uniques/NPCs Destroyed . | . . . . Combat | -11 -10 -9 -9 -------- Run | Yrd Mat Mat Sto Hostile Shots Fired 347 | . 72 145 130 Missed 96 | . 21 41 34 Damage Taken 2862 | . 581 1016 1265 Core 508 | . 101 168 239 Absorbed by Shields 54 | . . . 54 Core Remaining (%) 79 | 100 59 . . Volleys Fired 153 | . 52 57 44 Largest 2 | . 2 2 2 Hottest 101 | . 73 46 101 Shots Fired 251 | . 96 103 52 Gun 251 | . 96 103 52 Cannon . | . . . . Launcher . | . . . . Special . | . . . . Kinetic 160 | . 52 103 5 Thermal 55 | . 26 . 29 Explosive . | . . . . Electromagnetic 36 | . 18 . 18 Robot Hit Streak 20 | . 8 13 20 Robot Miss Streak 8 | . 8 5 3 Penetration Max . | . . . . Secondary Targets 8 | . 3 4 1 Max Gunslinging Chain 1 | . 1 1 1 Shots Hit Robots 149 | . 47 63 39 Core Hits 77 | . 21 24 32 Critical Kills . | . . . . Critical Parts Destroyed 1 | . 1 . . Critical Strikes 4 | . 1 . 3 Burn 3 | . . . 3 Destroy 1 | . 1 . . Melee Attacks . | . . . . Impact . | . . . . Slashing . | . . . . Piercing . | . . . . Sneak Attacks . | . . . . Combat Hostiles . | . . . . Follow-up Attacks . | . . . . Damage Inflicted 2682 | . 696 967 1019 Guns 2252 | . 652 966 634 Cannons . | . . . . Explosions 420 | . 44 . 376 Melee . | . . . . Ramming 10 | . . 1 9 Kinetic 1370 | . 340 966 64 Thermal 819 | . 173 . 646 Explosive . | . . . . Electromagnetic 483 | . 183 . 300 Impact . | . . . . Slashing . | . . . . Piercing . | . . . . Highest Corruption . | . . . . Average Corruption . | . . . . Corruption Purged . | . . . . Corruption Blocked . | . . . . Overload Shots . | . . . . Overflow Damage 26 | . . . 26 Projectiles . | . . . . Explosions 26 | . . . 26 Melee . | . . . . Knockbacks . | . . . . Impact . | . . . . Kinetic . | . . . . Secondary . | . . . . Self-Inflicted Damage 24 | . . . 24 Shots 2 | . . . 2 Rammed 6 | . . 1 5 Targets Rammed 6 | . . 1 5 Kicked . | . . . . Crushed . | . . . . Highest Temperature 486 | . 33 9 486 Average Temperature 119 | . 14 9 136 Received Heat Transfer 1076 | . 297 183 596 Effects 8 | . . . 8 Shutdowns 1 | . . . 1 Energy Bleed 1 | . . . 1 Interference 3 | . . . 3 Matter Decay 1 | . . . 1 Damage (minor) 1 | . . . 1 Damage (major) 1 | . . . 1 Siege Activations . | . . . . Robots Corrupted . | . . . . Combat Hostiles . | . . . . Parts Fried 1 | . 1 . . Impact Corruptions . | . . . . Robots Melted . | . . . . Combat Hostiles . | . . . . Parts Melted 3 | . 1 . 2 Heat Transferred 1845 | . 420 . 1425 Parts Sabotaged . | . . . . Parts Stolen . | . . . . Parts Stripped . | . . . . Power Chain Reactions 4 | . 1 . 3 Alert | -11 -10 -9 -9 ------- Run | Yrd Mat Mat Sto Peak Influence 533 | . 229 368 533 Initial 155 | . . 67 155 Average 181 | . 96 205 309 Maximum Alert Level 2 | . 1 1 2 Low Security (%) 65 | 100 97 49 28 Level 1 29 | . 2 50 49 Level 2 5 | . . . 21 Level 3 . | . . . . Level 4 . | . . . . Level 5 . | . . . . High Security . | . . . . Max Security . | . . . . Squads Dispatched 6 | . 1 1 4 Investigation 1 | . . . 1 Extermination . | . . . . Reinforcement 3 | . 1 1 1 Assault 2 | . . . 2 Garrison . | . . . . Intercept . | . . . . Searches Triggered . | . . . . Construction Impeded . | . . . . Haulers Reinforced . | . . . . Active Scanning Responses . | . . . . Cargo Convoy Interrupts . | . . . . Stealth | -11 -10 -9 -9 --------- Run | Yrd Mat Mat Sto Distress Signals 5 | . 2 1 2 Communications Jammed . | . . . . Distress Signals . | . . . . Times Spotted 74 | . 21 20 33 Peak Tracking Total 7 | . 4 7 6 Tactical Retreats 4 | . 2 1 1 Traps | -11 -10 -9 -9 ------- Run | Yrd Mat Mat Sto Traps Triggered 2 | . . 1 1 Indirectly . | . . . . Trap Hack Attempts . | . . . . Triggered . | . . . . Disarmed . | . . . . Reprogrammed . | . . . . Reused . | . . . . Traps Extracted . | . . . . Installed . | . . . . Triggered . | . . . . Machines | -11 -10 -9 -9 ---------- Run | Yrd Mat Mat Sto Machines Disabled 2 | . . 1 1 Max in Single Turn 1 | . . 1 1 Machines Repaired . | . . . . Machines Dismantled . | . . . . Machines Sabotaged . | . . . . Overloaded Fab Kills . | . . . . Hacking | -11 -10 -9 -9 --------- Run | Yrd Mat Mat Sto Machines Accessed 14 | . 3 7 4 Terminals 10 | . 3 5 2 Fabricators . | . . . . Repair Stations . | . . . . Recycling Units 1 | . . . 1 Scanalyzers 2 | . . 2 . Garrison Access 1 | . . . 1 Total Hacks 48 | . 9 32 7 Successful 34 | . 7 25 2 Failed 14 | . 2 7 5 Catastrophic 1 | . . 1 . Database Lockouts . | . . . . Manual 5 | . 2 2 1 Terminals 22 | . 9 8 5 Fabricators . | . . . . Repair Stations . | . . . . Recycling Units 1 | . . . 1 Scanalyzers 24 | . . 24 . Garrison Access 1 | . . . 1 Terminal Hacks 11 | . 7 3 1 Record 4 | . 3 1 . Open Door 1 | . . . 1 Branch Access Points 1 | . 1 . . Emergency Access Points 1 | . . 1 . Locate Traps 1 | . 1 . . Recall Investigation 1 | . 1 . . Hauler Manifests 1 | . 1 . . Zone Layout 1 | . . 1 . Fabricator Hacks . | . . . . Repair Station Hacks . | . . . . Recycling Unit Hacks 1 | . . . 1 Retrieve Components 1 | . . . 1 Scanalyzer 22 | . . 22 . Insert Component 11 | . . 11 . Analyze 11 | . . 11 . Garrison Access Hacks . | . . . . Unauthorized Hacks . | . . . . Terminals . | . . . . Fabricators . | . . . . Repair Stations . | . . . . Recycling Units . | . . . . Scanalyzers . | . . . . Garrison Access . | . . . . Data Cores Recovered . | . . . . Used . | . . . . Hacking Detections 12 | . 2 7 3 Full Trace Events 2 | . . 2 . Feedback Events . | . . . . Feedback Blocked . | . . . . Robot Schematics Acquired . | . . . . Robots Built . | . . . . Authchips . | . . . . Time . | . . . . Total Robot Build Rating . | . . . . Part Schematics Acquired 10 | . . 10 . Parts Built . | . . . . Authchips . | . . . . Time . | . . . . Total Part Build Rating . | . . . . Parts Repaired . | . . . . Time . | . . . . Parts Recycled . | . . . . Recycled Matter . | . . . . Retrieved Matter . | . . . . Retrieved Components 1 | . . . 1 Parts Scanalyzed 10 | . . 10 . Part Schematics Acquired 10 | . . 10 . Parts Damaged . | . . . . Bothacking | -11 -10 -9 -9 ------------ Run | Yrd Mat Mat Sto Used RIF Installer . | . . . . Robots Hacked . | . . . . Non-combat . | . . . . Combat . | . . . . Robot Hacks Applied . | . . . . Relay Couplers Released . | . . . . Fabnet Peak Effective % . | . . . . Robots Rewired 1 | . . . 1 Allies Hacked . | . . . . Hacks Repelled . | . . . . Allies | -11 -10 -9 -9 -------- Run | Yrd Mat Mat Sto Total Allies 3 | . . . 3 Largest Group 2 | . . . 2 Highest-Rated Group 62 | . . . 62 Highest-Rated Ally 31 | . . . 31 Total Orders . | . . . . Ally Attacks 26 | . . . 26 Total Damage 488 | . . . 488 Kills 7 | . . . 7 Allies Corrupted . | . . . . Allies Melted . | . . . . Intel | -11 -10 -9 -9 ------- Run | Yrd Mat Mat Sto Robot Analysis Total . | . . . . Derelict Logs Recovered . | . . . . Drone Launches . | . . . . Drone Recoveries . | . . . . Exploration | -11 -10 -9 -9 ------------- Run | Yrd Mat Mat Sto Turns Passed 2448 | 63 1035 710 640 Spaces Moved 1202 | 55 519 272 356 Core 9 | 9 . . . Treads 376 | 1 100 224 51 Legs 232 | . . . 232 Wheels 512 | 45 419 48 . Hover . | . . . . Flight 73 | . . . 73 Fastest Speed 37 | 50 95 160 37 Average Speed 133 | 88 117 189 120 Slowest Speed 480 | 160 320 480 277 Overloaded Moves . | . . . . Propulsion Burnouts . | . . . . Robots Hopped 1 | . . . 1 Cave-ins Triggered . | . . . . Exploration Rate (%) 37 | 3 65 26 55 Regions Visited 3 Branch Regions 1 Pre-discovered Areas 1 | . . . 1 Known Exits Taken . | . . . . Unknown Exits Taken 3 | 1 1 1 . Scrap Searched . | . . . . Spaces Dug . | . . . . Terrain Destroyed 17 | . 7 . 10 Melee . | . . . . Projectile . | . . . . AOE 17 | . 7 . 10 Terrain Rammed . | . . . . Walls Destroyed . | . . . . Machines Disabled . | . . . . Actions | -11 -10 -9 -9 --------- Run | Yrd Mat Mat Sto Total 1787 | 67 852 359 509 Wait 309 | . 247 2 60 Move 1197 | 54 518 271 354 Hop 1 | . . . 1 Pick Up 39 | 7 15 13 4 Fast Attach 21 | 3 4 5 9 Attach 16 | 3 2 6 5 Detach . | . . . . Swap 11 | . 4 3 4 Drop 29 | . 10 1 18 Fire 153 | . 52 57 44 Melee . | . . . . Ram . | . . . . Kick . | . . . . Crush 6 | . . 1 5 Escape Stasis . | . . . . Rewire 5 | . . . 5 Trap . | . . . . Miscellaneous . | . . . . Route ------- -11/Scrapyard -10/Materials (discovered 4 exits: *Mat x2 / Min x2) -9/Materials (discovered 2 exits: [*Mat] / *Sto) -9/Storage History --------- Turn | Location | Event 7 | -11/Scrapyard | Discovered new exit (range 15) 64 | -11/Scrapyard | Entered Materials 103 | -10/Materials | Identified exit to Mines 306 | -10/Materials | Build established: Mutant 669 | -10/Materials | Discovered new exit (range 15) 1007 | -10/Materials | Discovered new exit (range 14) 1099 | -10/Materials | Entered another Materials area 1099 | -9/Materials | Evolved 2 slots: Propulsion x2 1654 | -9/Materials | Discovered new exit (range 13) 1773 | -9/Materials | Discovered new exit (range 16) 1809 | -9/Materials | Entered Storage 1833 | -9/Storage | Build established: Scavenger-Mutant 1948 | -9/Storage | Core integrity fell below 50% 2004 | -9/Storage | Met a pair of Derelict thieves 2025 | -9/Storage | Lost 6 parts (5n1w) 2107 | -9/Storage | Learned location of Armory (-4) 2155 | -9/Storage | Core integrity fell below 20% 2449 | -9/Storage | Destroyed by G-34 Mercenary with Small Laser Last Messages --------------- Aluminum Leg. 02433_ Ion Engine melted. 02433_ G-34 Mercenary destroyed. 02433_ K-01 Serf collects debris. 02439_ Overheating: Imp. Ion Engine damaged (-15). 02440_ Aluminum Leg destroyed. 02442_ Carbon-fiber Leg destroyed. 02443_ Overheating: Carbon-fiber Leg damaged (-18). 02443_ G-34 Mercenary suffers critical hit (Burn). 02445_ Overheating: Matter decay (-72). 02445_ G-34 Mercenary heat damages Ion Engine. 02445_ Beam Rifle destroyed. 02446_ Power failure, Imp. Ion Engine shutdown. 02446_ Overheating: Energy bleed (-47). 02446_ Carbon-fiber Leg destroyed. 02447_ G-34 Mercenary heat damages Sml. Laser, Ion Engine, Aluminum Leg, Aluminum Leg. Map ----- +----------------------------------------------------+ | ???# ???????????? ## ! # # | | ???? ???????????? ## # # | | ??????????????????? ?# + # | | ?????????????????????# = ### | | ?????????????????????# #?? | | ???? ??????????????# #?? | | ???# ??????????????# #?? | | ???# ??????????????# % #?? | | ???# ??????????????# * #?? | | ???# #?????????????# !==!##? | | ???# #?????????????# !**=##? | | ???# #?????????????# =%%[%### | | ???# #?????????????# [!=%=# | | ???# #??????##??########+## " | | ???# #???### #### # % =# " | | ???# #???# # + ! # " | | ???# #???# """ # # *%=+% | | ???# #???# """ # # = # " | | ???# #???# """ # ## ## " | | ???# ##### """ # ## ## " | | ???# + """ # ## ## | | ???# ##### ###+### #### | | ???# #???# """ ### ### #T## | | ???##g##???# """ / =%* | | ??##gg!#???# """ ## ! | | ??#T%*@#???# """ ## ##+###### | | ??## #???# """ ## ## T#?? | | ???#= =#???# ## ###"###?? | | ???#= =#???##+##+## #??????? | | ???#= =#???# #??????? | | ???#= =#???# #??????? | | ???#####???# ##### #??????? | | ???????????# #???######??????? | | ???????????# #???????????????? | | ???????????# T???????????????? | | ???????????# #???????????????? | | ???????????"""????????????????? | | ??????????????????????????????? | | ??????????????????????????????? | | ??????????????????????????????? | | ??????????????????????????????? | | ??????????????????????????????? | | ??????????????????????????????? | | | | | | | | | | | | | | | +----------------------------------------------------+ Best States ------------- Heat Dissipation 38 Energy Generation 12 Energy Capacity 265 Matter Stores 300 Matter Capacity 300 Sight Range 16 Terrain Scan Density 10 Additional Mass Support 6 Armor Coverage 150 Evasion (%) 62 Recoil Reduction 4 Item Schematics ----------------- Sensor Array | -9/Materials | Scanalyzed Heat Sink | -9/Materials | Scanalyzed Lgt. Ion Engine | -9/Materials | Scanalyzed Structural Scanner | -9/Materials | Scanalyzed Terrain Scan Processor | -9/Materials | Scanalyzed Targeting Computer | -9/Materials | Scanalyzed Ion Engine | -9/Materials | Scanalyzed Weight Redist. System | -9/Materials | Scanalyzed Terrain Scanner | -9/Materials | Scanalyzed Hcp. Matter Pod | -9/Materials | Scanalyzed Robot Schematics ------------------ None Fabricated ------------ Nothing Alien Tech Used ----------------- None Achievements -------------- Risk Taker Challenges ------------ None Game ------ Seed NetworkGaussCompressor Manual? 0 Play Time 00:49:07 Cumulative 33.8 hours Start 2024.04.11 @ 11:58:25 End 2024.04.11 @ 12:47:44 Sessions 1 Manual Loads 0 Difficulty Rogue Special Mode None Game No. 46 Rogue 46 Adventurer 0 Explorer 0 Win Type - Total 0 Types 0/0/0/0/0/0/0/0/0 Lore% 9 Gallery% 28 Achievement% 6 Wizard Run 0 Options --------- Layout 1 ASCII 0 Keyboard 0 Movement Numpad Keybinds 0 Fullscreen 1 Font 24/Smallcaps Map View 50x35 Zoom Use 0% Tactical HUD 1 Map Filters NONE Filters NONE Steam 1 RUN: 0e368435-7c34-4051-a677-ece367adbff4